[Event "105th British-ch 2018"]
[Site "Hull"]
[Date "2018.07.30"]
[Round "3"]
[White "Trent, Lawrence"]
[Black "Rudd, Jack"]
[Result "1-0"]
[ECO "A45"]
[WhiteElo "2406"]
[BlackElo "2244"]
[Annotator "NA"]
[PlyCount "77"]
[EventDate "2018.07.28"]
[EventType "swiss"]
[EventCountry "GBR"]
[SourceTitle "playchess.com"]
[Source "ChessBase"]
[SourceQuality "1"]
[TimeControl "40/5400+30:1800+30"]

1. d4 {[%emt 0:00:00]} Nf6 {[%emt 0:00:07]} 2. Bg5 {[%emt 0:00:04]} e6 {[%emt 0:00:08]} 3. e4 {[%emt 0:00:04]} h6 {[%emt 0:00:16]} 4. Bxf6 {[%emt 0:00:04]} Qxf6 {[%emt 0:00:08]} 5. c3 {[%emt 0:00:04]} d6 {[%emt 0:01:12]} 6. Bd3 {[%emt 0:00:16]} Nd7 {[%emt 0:00:25]} 7. Ne2 {[%emt 0:00:05]} g5 {[%emt 0:02:11]} 8. O-O {[%emt 0:01:00]} Bg7 {[%emt 0:00:52]} 9. f4 {[%emt 0:00:07]} Qe7 {[%emt 0:01:21]} 10. Nd2 {[%emt 0:01:17]} Nf6 {[%emt 0:00:39]} 11. Nc4 {[%emt 0:06:46]} d5 {[%emt 0:03:02]} 12. exd5 {[%emt 0:00:12]} Nxd5 {[%emt 0:00:07]} 13. Qd2 {[%emt 0:00:06]} Bd7 {[%emt 0:00:54]} 14. Ne3 {[%emt 0:08:04]} Nxf4 {[%emt 0:04:08]} 15. Nxf4 {[%emt 0:00:07]} gxf4 {[%emt 0:00:08]} 16. Nc4 {[%emt 0:00:42]} O-O-O {[%emt 0:01:04]} 17. Qxf4 {[%emt 0:00:09]} f5 {[%emt 0:00:19]} 18. Rae1 {[%emt 0:03:17]} Qg5 {[%emt 0:01:25]} 19. Ne5 {[%emt 0:01:40]} Qxf4 {[%emt 0:01:25]} 20. Rxf4 {[%emt 0:00:02]} Be8 {[%emt 0:00:10]} 21. Bc4 {[%emt 0:02:49]} Rd6 {[%emt 0:00:08]} 22. Rf2 {[%emt 0:01:00]} Bh5 {[%emt 0:01:40]} 23. Nd3 {[%emt 0:00:28]} Re8 {[%emt 0:00:21]} 24. Nf4 {[%emt 0:08:07]} Bf7 {[%emt 0:00:09]} 25. Rfe2 {[%emt 0:00:19]} Kd7 {[%emt 0:00:07]} 26. Nd3 {[%emt 0:01:56]} b6 {[%emt 0:00:39]} 27. a4 {[%emt 0:29:49]} c6 {[%emt 0:02:04]} 28. Ba2 {[%emt 0:12:18]} Bg8 {[%emt 0:05:39]} 29. Nf4 {[%emt 0:05:32]} Bf7 {[%emt 0:01:17]} 30. Nd3 {[%emt 0:00:05]} Bg8 {[%emt 0:00:09]} 31. Nf4 {[%emt 0:00:04]} Bf7 {[%emt 0:00:09]} 32. Bb3 {[%emt 0:00:47]} Bf6 {[%emt 0:01:24]} 33. a5 {[%emt 0:02:38]} bxa5 {[%emt 0:01:32]} 34. Nd3 {[%emt 0:00:32]} Rb8 {[%emt 0:03:22]} 35. Nc5+ {[%emt 0:01:57]} Ke7 {[%emt 0:00:58]} 36. Bxe6 {[%emt 0:00:06]} Bxe6 {[%emt 0:00:09]} 37. Rxe6+ {[%emt 0:00:03]} Rxe6 {[%emt 0:00:08]} 38. Rxe6+ {[%emt 0:00:02]} Kf7 {[%emt 0:00:09]} 39. Rxf6+ {[%emt 0:00:07]} 1-0

[Event "105th British-ch 2018"]
[Site "Hull"]
[Date "2018.07.30"]
[Round "3"]
[White "Macklin, Paul"]
[Black "Kalaiyalahan, Akshaya"]
[Result "1/2-1/2"]
[ECO "B22"]
[WhiteElo "2363"]
[BlackElo "2138"]
[Annotator "NA"]
[PlyCount "102"]
[EventDate "2018.07.28"]
[EventType "swiss"]
[EventCountry "GBR"]
[SourceTitle "playchess.com"]
[Source "ChessBase"]
[SourceQuality "1"]
[TimeControl "40/5400+30:1800+30"]

1. e4 {[%emt 0:00:01]} c5 {[%emt 0:00:06]} 2. Nf3 {[%emt 0:00:15]} Nc6 {[%emt 0:00:11]} 3. c3 {[%emt 0:00:32]} d5 {[%emt 0:00:19]} 4. exd5 {[%emt 0:00:28]} Qxd5 {[%emt 0:00:09]} 5. d4 {[%emt 0:00:25]} Bf5 {[%emt 0:00:35] B22: Sizilianisch (Alapin 2.c3)} (5... Nf6 6. Be2 cxd4 7. cxd4 e6 8. O-O Be7 9. Nc3 Qd6 10. Nb5 Qd8 11. Bf4 Nd5 12. Bg3 O-O 13. Bc4 a6 14. Nc3 Nxc3 15. bxc3 b5 16. Bd3 Bb7 17. a4 b4 18. Rb1 Bf6 19. Be4 a5 20. cxb4 axb4 21. Bxc6 {½-½ (21) Zvjaginsev,V (2660)-Moiseenko,A (2692) Berlin 2015}) 6. Be2 {[%emt 0:07:45]} cxd4 {[%emt 0:01:20]} 7. cxd4 {[%emt 0:00:05]} Bxb1 {[%emt 0:00:34]} 8. Rxb1 {[%emt 0:00:04]} e6 {[%emt 0:00:28]} 9. a3 {[%emt 0:00:27]} Bd6 {[%emt 0:03:00]} 10. O-O {[%emt 0:02:25]} Nf6 {[%emt 0:03:10]} 11. Bg5 {[%emt 0:07:19]} O-O {[%emt 0:06:26]} 12. Rc1 {[%emt 0:06:16]} Ne7 $146 {[%emt 0:19:51]} ({Vorgänger:} 12... Rfd8 13. Bc4 {½-½ (32) Seymour,T (2050)-Adair,J (2138) Uxbridge 2009}) 13. Bc4 {[%emt 0:05:37]} Qa5 {[%emt 0:02:06]} 14. Qb3 {[%emt 0:03:55]} Qb6 {[%emt 0:01:57]} 15. Qxb6 {[%emt 0:02:46]} axb6 {[%emt 0:00:05]} 16. Bxf6 {[%emt 0:00:22]} gxf6 {[%emt 0:00:06]} 17. g3 {[%emt 0:11:17]} Ra5 {[%emt 0:13:38]} 18. Rc3 {[%emt 0:04:43]} Rc8 {[%emt 0:08:44]} 19. Rfc1 {[%emt 0:01:04]} Nd5 {[%emt 0:14:40]} 20. Bxd5 {[%emt 0:01:33]} Rxc3 {[%emt 0:00:06]} 21. Rxc3 {[%emt 0:00:10]} Rxd5 {[%emt 0:02:19]} 22. Rc8+ {[%emt 0:00:33]} Kg7 {[%emt 0:00:24]} 23. Rd8 {[%emt 0:00:26]} Bc7 {[%emt 0:07:23]} 24. Rxd5 {[%emt 0:00:20]} exd5 {[%emt 0:00:04]} 25. Nh4 {[%emt 0:03:53]} b5 {[%emt 0:00:41]} 26. Kf1 {[%emt 0:00:09]} Bb6 {[%emt 0:00:41]} 27. Ke2 {[%emt 0:00:05]} Kh6 {[%emt 0:02:38]} 28. Ke3 {[%emt 0:10:56]} Kg5 {[%emt 0:00:23]} 29. h3 {[%emt 0:09:10]} Bc7 {[%emt 0:00:09]} 30. Kd3 {[%emt 0:03:39]} f5 {[%emt 0:05:25]} 31. f4+ {[%emt 0:01:48]} Kf6 {[%emt 0:00:06]} 32. Ng2 {[%emt 0:02:20]} h5 {[%emt 0:02:17]} 33. Ne3 {[%emt 0:03:09]} Ke6 {[%emt 0:00:04]} 34. h4 {[%emt 0:01:38]} Ba5 {[%emt 0:00:43]} 35. b4 {[%emt 0:01:33]} Bd8 {[%emt 0:01:40]} 36. Nd1 {[%emt 0:00:34]} Kd6 {[%emt 0:00:22]} 37. Nc3 {[%emt 0:00:23]} Kc6 {[%emt 0:00:04]} 38. Nb1 {[%emt 0:00:23]} f6 {[%emt 0:03:20]} 39. Nd2 {[%emt 0:00:37]} Kd6 {[%emt 0:00:39]} 40. Nb3 {[%emt 0:00:15]} b6 {[%emt 0:00:24]} 41. Nd2 {[%emt 0:03:08]} Ke6 {[%emt 0:01:34]} 42. Nf1 {[%emt 0:00:18]} Bc7 {[%emt 0:00:34]} 43. Ne3 {[%emt 0:00:12]} Bd8 {[%emt 0:00:48]} 44. Kc2 {[%emt 0:00:25]} Bc7 {[%emt 0:00:41]} 45. Kb3 {[%emt 0:00:11]} Bd8 {[%emt 0:02:28]} 46. a4 {[%emt 0:05:02]} Bc7 {[%emt 0:00:27]} 47. Nd1 {[%emt 0:00:23]} Kd6 {[%emt 0:07:13]} 48. Nc3 {[%emt 0:00:15]} bxa4+ {[%emt 0:00:05]} 49. Kxa4 {[%emt 0:00:20]} Kc6 $1 {[%emt 0:00:05]} 50. b5+ {[%emt 0:02:33]} Kd6 {[%emt 0:00:08]} 51. Kb3 {[%emt 0:01:42]} Ke6 $14 {[%emt 0:01:52]} 1/2-1/2

[Event "105th British-ch 2018"]
[Site "Hull"]
[Date "2018.07.30"]
[Round "3"]
[White "Zapolskis, Antanas"]
[Black "Thurlow, Kevin J"]
[Result "1-0"]
[ECO "B47"]
[WhiteElo "2283"]
[BlackElo "2030"]
[Annotator "NA"]
[PlyCount "35"]
[EventDate "2018.07.28"]
[EventType "swiss"]
[EventCountry "GBR"]
[SourceTitle "playchess.com"]
[Source "ChessBase"]
[SourceQuality "1"]
[TimeControl "40/5400+30:1800+30"]

1. e4 {[%emt 0:03:24]} c5 {[%emt 0:00:08]} 2. Nf3 {[%emt 0:00:10]} e6 {[%emt 0:00:11]} 3. d4 {[%emt 0:00:10]} cxd4 {[%emt 0:00:10]} 4. Nxd4 {[%emt 0:00:08]} Nc6 {[%emt 0:00:24]} 5. Nc3 {[%emt 0:00:13]} Qc7 {[%emt 0:00:25]} 6. g3 {[%emt 0:01:19]} a6 {[%emt 0:00:34]} 7. Bg2 {[%emt 0:00:18]} Nf6 {[%emt 0:01:00]} 8. Nb3 {[%emt 0:01:23]} Be7 {[%emt 0:01:29]} 9. a4 {[%emt 0:01:11]} O-O {[%emt 0:02:24]} 10. O-O {[%emt 0:00:31]} Rb8 {[%emt 0:03:56]} 11. a5 {[%emt 0:03:46]} Bb4 {[%emt 0:07:50]} 12. Bg5 {[%emt 0:15:23]} Nxa5 {[%emt 0:06:08]} 13. e5 {[%emt 0:03:31]} Ne8 {[%emt 0:05:40]} 14. Nxa5 {[%emt 0:05:39]} Bxa5 {[%emt 0:00:09]} 15. Ne4 {[%emt 0:00:41]} f5 {[%emt 0:07:05]} 16. exf6 {[%emt 0:00:19]} Nxf6 {[%emt 0:00:10]} 17. Nxf6+ {[%emt 0:00:17]} gxf6 {[%emt 0:00:09]} 18. Bf4 {[%emt 0:00:36]} 1-0

[Event "105th British-ch 2018"]
[Site "Hull"]
[Date "2018.07.30"]
[Round "3"]
[White "McMichael, Richard J"]
[Black "Houska, Jovanka"]
[Result "0-1"]
[ECO "A03"]
[WhiteElo "2245"]
[BlackElo "2406"]
[Annotator "NA"]
[PlyCount "86"]
[EventDate "2018.07.28"]
[EventType "swiss"]
[EventCountry "GBR"]
[SourceTitle "playchess.com"]
[Source "ChessBase"]
[SourceQuality "1"]
[TimeControl "40/5400+30:1800+30"]

1. e3 {[%emt 0:00:01]} g6 {[%emt 0:01:14]} 2. f4 {[%emt 0:00:22]} d5 {[%emt 0:00:37]} 3. Nf3 {[%emt 0:00:20]} Bg7 {[%emt 0:00:15]} 4. c3 {[%emt 0:00:57]} c5 {[%emt 0:00:40]} 5. d4 {[%emt 0:00:17]} Qc7 {[%emt 0:01:05]} 6. Bd3 {[%emt 0:00:45]} Nh6 {[%emt 0:00:31]} 7. O-O {[%emt 0:00:46]} Bf5 {[%emt 0:01:02]} 8. Be2 {[%emt 0:01:31]} O-O {[%emt 0:01:50]} 9. h3 {[%emt 0:00:23]} Bxb1 {[%emt 0:00:42]} 10. Rxb1 {[%emt 0:00:06]} Nf5 {[%emt 0:00:24]} 11. Qe1 {[%emt 0:02:26]} Nd7 {[%emt 0:03:08]} 12. Bd3 {[%emt 0:03:07]} Nd6 {[%emt 0:01:50]} 13. g4 {[%emt 0:08:06]} Nf6 {[%emt 0:03:58]} 14. Qg3 {[%emt 0:03:04]} Nfe4 {[%emt 0:06:01]} 15. Qg2 {[%emt 0:00:35]} f6 {[%emt 0:14:15]} 16. Nd2 {[%emt 0:04:23]} Qc6 {[%emt 0:06:49]} 17. Nxe4 {[%emt 0:06:04]} Nxe4 {[%emt 0:01:08]} 18. f5 {[%emt 0:04:18]} e6 {[%emt 0:11:19]} 19. Bxe4 {[%emt 0:06:20]} dxe4 {[%emt 0:00:04]} 20. Bd2 {[%emt 0:02:49]} Rad8 {[%emt 0:02:12]} 21. Kh1 {[%emt 0:07:42]} Kh8 {[%emt 0:02:07]} 22. fxg6 {[%emt 0:04:08]} hxg6 {[%emt 0:00:06]} 23. Be1 {[%emt 0:00:20]} e5 {[%emt 0:02:20]} 24. dxe5 {[%emt 0:02:19]} fxe5 {[%emt 0:00:03]} 25. Bg3 {[%emt 0:00:47]} Rf3 {[%emt 0:00:08]} 26. Rxf3 {[%emt 0:03:10]} exf3 {[%emt 0:01:41]} 27. Qc2 {[%emt 0:04:08]} Kh7 {[%emt 0:13:06]} 28. Rd1 {[%emt 0:12:23]} c4 {[%emt 0:02:30]} 29. Kg1 {[%emt 0:02:40]} Rd5 {[%emt 0:01:02]} 30. Kf2 {[%emt 0:05:36]} e4 {[%emt 0:00:34]} 31. Rd4 {[%emt 0:10:32]} Bxd4 {[%emt 0:00:36]} 32. cxd4 {[%emt 0:00:19]} Rb5 {[%emt 0:00:48]} 33. Be5 {[%emt 0:00:13]} Kg8 {[%emt 0:01:47]} 34. Kg3 {[%emt 0:01:14]} Kf7 {[%emt 0:01:26]} 35. h4 {[%emt 0:00:27]} Ke6 {[%emt 0:00:11]} 36. h5 {[%emt 0:00:55]} gxh5 {[%emt 0:01:29]} 37. gxh5 {[%emt 0:00:13]} Rxe5 {[%emt 0:05:05]} 38. dxe5 {[%emt 0:00:18]} Qd5 {[%emt 0:02:34]} 39. Kf2 {[%emt 0:02:09]} b5 {[%emt 0:00:52]} 40. Kg3 {[%emt 0:01:54]} Qxe5+ {[%emt 0:00:04]} 41. Kh4 {[%emt 0:00:02]} Qf6+ {[%emt 0:00:37]} 42. Kg4 {[%emt 0:00:25]} Qf5+ {[%emt 0:00:07]} 43. Kg3 {[%emt 0:00:10]} Qg5+ {[%emt 0:00:08]} 0-1

[Event "105th British-ch 2018"]
[Site "Hull"]
[Date "2018.07.30"]
[Round "3"]
[White "Wall, Tim P"]
[Black "McPhillips, Joseph"]
[Result "1-0"]
[ECO "C02"]
[WhiteElo "2234"]
[BlackElo "2402"]
[Annotator "NA"]
[PlyCount "61"]
[EventDate "2018.07.28"]
[EventType "swiss"]
[EventCountry "GBR"]
[SourceTitle "playchess.com"]
[Source "ChessBase"]
[SourceQuality "1"]
[TimeControl "40/5400+30:1800+30"]

1. e4 {[%emt 0:00:10]} e6 {[%emt 0:00:57]} 2. d4 {[%emt 0:00:15]} d5 {[%emt 0:00:05]} 3. e5 {[%emt 0:00:10]} c5 {[%emt 0:00:10]} 4. c3 {[%emt 0:00:08]} Nc6 {[%emt 0:01:12]} 5. Nf3 {[%emt 0:00:25]} Qb6 {[%emt 0:02:24]} 6. Bd3 {[%emt 0:02:01]} Nh6 {[%emt 0:05:14]} 7. O-O {[%emt 0:05:53]} cxd4 {[%emt 0:00:06]} 8. cxd4 {[%emt 0:00:24]} Nf5 {[%emt 0:00:03]} 9. Bxf5 {[%emt 0:00:24]} exf5 {[%emt 0:00:04]} 10. Nc3 {[%emt 0:00:13]} Be6 {[%emt 0:00:02]} 11. a3 {[%emt 0:01:27]} Be7 {[%emt 0:10:57]} 12. b4 {[%emt 0:01:10]} O-O {[%emt 0:00:50]} 13. Qd3 {[%emt 0:02:07]} h6 {[%emt 0:01:13]} 14. Be3 {[%emt 0:03:03]} g5 {[%emt 0:08:42]} 15. g3 {[%emt 0:13:15]} Qd8 {[%emt 0:02:52]} 16. Ne1 {[%emt 0:05:43]} f4 {[%emt 0:12:55]} 17. gxf4 {[%emt 0:08:12]} Qd7 {[%emt 0:00:03]} 18. Kh1 {[%emt 0:04:01]} Bf5 {[%emt 0:01:24]} 19. Qd2 {[%emt 0:06:57]} g4 {[%emt 0:00:03]} 20. f3 {[%emt 0:10:27]} h5 {[%emt 0:00:45]} 21. Ne2 {[%emt 0:02:58]} h4 {[%emt 0:19:13]} 22. Nc3 {[%emt 0:01:15]} Kh8 {[%emt 0:00:57]} 23. fxg4 {[%emt 0:06:16]} Bxg4 {[%emt 0:00:03]} 24. f5 {[%emt 0:00:12]} Bxf5 {[%emt 0:00:58]} 25. Bg5 {[%emt 0:06:24]} Bh7 {[%emt 0:04:11]} 26. Bf6+ {[%emt 0:06:08]} Bxf6 {[%emt 0:03:46]} 27. Rxf6 {[%emt 0:00:09]} Rg8 {[%emt 0:10:11]} 28. Nf3 {[%emt 0:03:03]} Rg4 {[%emt 0:01:04]} 29. Ng5 {[%emt 0:02:59]} Rxd4 {[%emt 0:04:17]} 30. Qf2 {[%emt 0:00:54]} Rg4 {[%emt 0:02:20]} 31. Rxf7 {[%emt 0:02:08]} 1-0

[Event "105th British-ch 2018"]
[Site "Hull"]
[Date "2018.07.30"]
[Round "3"]
[White "Sugden, John N"]
[Black "Burke, Mitchell R"]
[Result "*"]
[ECO "B01"]
[WhiteElo "2090"]
[BlackElo "1988"]
[Annotator "NA RC"]
[PlyCount "74"]
[EventDate "2018.07.28"]
[EventType "swiss"]
[EventCountry "GBR"]
[SourceTitle "playchess.com"]
[Source "ChessBase"]
[SourceQuality "1"]
[TimeControl "40/5400+30:1800+30"]

1. e4 {[%emt 0:00:24]} d5 {[%emt 0:04:26]} 2. exd5 {[%emt 0:00:21]} Qxd5 {[%emt 0:00:06]} 3. Nc3 {[%emt 0:01:01]} Qd6 {[%emt 0:00:15]} 4. Bc4 {[%emt 0:09:55]} Nf6 {[%emt 0:05:04]} 5. d4 {[%emt 0:09:58]} c6 {[%emt 0:09:30] B01: Scandinavian Defence} 6. Nge2 {[%emt 0:04:11]} (6. h3 Bf5 7. g4 Be6 8. Bb3 Bd5 9. Nxd5 cxd5 10. Nf3 Nc6 11. Qe2 e6 12. c3 Nd7 13. Be3 {0-1 (45) Edouard,R (2680)-Bauer,C (2658) Nimes 2014}) 6... Bf5 {[%emt 0:13:35]} 7. Bf4 {[%emt 0:02:38]} Qb4 {[%emt 0:06:02]} 8. Bb3 {[%emt 0:00:27]} e6 {[%emt 0:02:25]} 9. O-O {[%emt 0:03:52]} Be7 {[%emt 0:09:06]} 10. Bc7 {[%emt 0:02:26]} b6 {[%emt 0:14:26]} 11. Ng3 {[%emt 0:10:18]} Bg6 {[%emt 0:04:39]} 12. f4 {[%emt 0:03:50]} Na6 $146 {[%emt 0:06:04]} ({Predecessor:} 12... O-O 13. f5 exf5 14. Nxf5 {1-0 (29) Correas Marcen,J (2005)-Roman Gimeno,J (1935) Aragon 2014}) 13. Be5 {[%emt 0:00:19]} O-O-O {[%emt 0:02:10]} 14. Qf3 {[%emt 0:08:22]} Nb8 {[%emt 0:02:00]} 15. f5 {[%emt 0:05:44]} exf5 {[%emt 0:01:43]} 16. Nxf5 {[%emt 0:03:11]} Bxf5 {[%emt 0:01:00]} 17. Qxf5+ {[%emt 0:00:26]} Kb7 {[%emt 0:00:06]} 18. a3 {[%emt 0:03:07]} Qa5 {[%emt 0:00:20]} 19. Bxf7 {[%emt 0:02:30]} Rhf8 {[%emt 0:02:00]} 20. Bc4 {[%emt 0:05:26]} Bc5 {[%emt 0:03:33]} 21. Rad1 {[%emt 0:08:42]} Nd5 {[%emt 0:06:51]} 22. Qxh7 {[%emt 0:03:09]} Ne3 {[%emt 0:01:07]} 23. b4 {[%emt 0:03:50]} Bxb4 {[%emt 0:02:54]} 24. axb4 {[%emt 0:00:21]} Qxb4 {[%emt 0:00:02]} 25. Qxg7+ {[%emt 0:01:55]} Ka8 {[%emt 0:00:27]} 26. Rxf8 {[%emt 0:02:25]} Qxf8 {[%emt 0:00:47]} 27. Qxf8 {[%emt 0:01:21]} Rxf8 {[%emt 0:00:04]} 28. Bb3 {[%emt 0:01:06]} Nxd1 {[%emt 0:00:16]} 29. Nxd1 {[%emt 0:00:04]} Nd7 {[%emt 0:00:03]} 30. Bd6 {[%emt 0:00:48]} Re8 {[%emt 0:00:17]} 31. Kf2 {[%emt 0:00:52]} Nf6 {[%emt 0:00:09]} 32. Nc3 {[%emt 0:00:33]} b5 {[%emt 0:00:53]} 33. Bf7 {[%emt 0:00:52]} Rd8 {[%emt 0:02:37]} 34. Be5 {[%emt 0:00:41]} b4 {[%emt 0:01:07]} 35. Na4 {[%emt 0:01:13]} Rf8 $18 {[%emt 0:00:20]} 36. Bg6 {[%emt 0:00:28]} Ng4+ {[%emt 0:01:08]} 37. Ke2 {[%emt 0:00:37]} Rf2+ {[%emt 0:00:26]} *

[Event "105th British-ch 2018"]
[Site "Hull"]
[Date "2018.07.30"]
[Round "3"]
[White "Jackson, Sheila"]
[Black "Britton, Richard L"]
[Result "0-1"]
[ECO "B50"]
[WhiteElo "2072"]
[BlackElo "2249"]
[Annotator "NA"]
[PlyCount "90"]
[EventDate "2018.07.28"]
[EventType "swiss"]
[EventCountry "GBR"]
[SourceTitle "playchess.com"]
[Source "ChessBase"]
[SourceQuality "1"]
[TimeControl "40/5400+30:1800+30"]

1. e4 {[%emt 0:00:01]} c5 {[%emt 0:10:50]} 2. Nf3 {[%emt 0:00:07]} d6 {[%emt 0:00:27]} 3. c3 {[%emt 0:00:06]} Nf6 {[%emt 0:00:11]} 4. Be2 {[%emt 0:00:06]} Nbd7 {[%emt 0:01:29]} 5. d3 {[%emt 0:00:06]} g6 {[%emt 0:05:04]} 6. O-O {[%emt 0:01:29]} Bg7 {[%emt 0:00:05]} 7. Nbd2 {[%emt 0:00:23]} O-O {[%emt 0:00:54]} 8. d4 {[%emt 0:04:59] B50: Sicilian: 2...d6, Miscellaneous} Qc7 {[%emt 0:04:47]} 9. Bd3 {[%emt 0:02:28]} b6 $146 {[%emt 0:08:02]} ({Predecessor:} 9... a6 10. Re1 e5 11. a4 b6 12. Rb1 Bb7 13. d5 h6 14. b4 Rab8 15. Qe2 a5 16. bxa5 bxa5 {1-0 (32) Grigore,N (2397)-Miraoui,K (2076) Sautron 2002}) 10. Qe2 {[%emt 0:00:27]} cxd4 {[%emt 0:00:54]} 11. cxd4 {[%emt 0:01:55]} e5 {[%emt 0:00:23]} 12. dxe5 {[%emt 0:08:24]} dxe5 {[%emt 0:02:19]} 13. Nb3 {[%emt 0:05:50]} Nh5 {[%emt 0:03:16]} 14. g3 {[%emt 0:05:08]} Bb7 {[%emt 0:08:28]} 15. Bg5 {[%emt 0:04:56]} Ndf6 {[%emt 0:06:17]} 16. Rac1 {[%emt 0:00:45]} Qe7 {[%emt 0:00:24]} 17. Rfe1 {[%emt 0:08:53]} h6 {[%emt 0:05:29]} 18. Bd2 {[%emt 0:01:36]} Rad8 {[%emt 0:03:06]} 19. Bc3 {[%emt 0:01:06]} Nd7 {[%emt 0:09:11]} 20. Ba6 {[%emt 0:02:47]} Bxa6 {[%emt 0:04:04]} 21. Qxa6 {[%emt 0:00:02]} Nb8 {[%emt 0:00:11]} 22. Qb5 {[%emt 0:00:36]} Rfe8 {[%emt 0:02:26]} 23. Nbd2 {[%emt 0:03:08]} Qe6 {[%emt 0:04:36]} 24. a4 {[%emt 0:11:38]} Qg4 {[%emt 0:09:42]} 25. Bxe5 {[%emt 0:05:23]} a6 {[%emt 0:02:34]} 26. Qxb6 {[%emt 0:08:11]} Nd7 {[%emt 0:00:05]} 27. Qxa6 {[%emt 0:02:10]} Nxe5 {[%emt 0:00:32]} 28. Nxe5 {[%emt 0:04:41]} Bxe5 {[%emt 0:00:15]} 29. Qe2 {[%emt 0:05:49]} Qxe2 {[%emt 0:01:10]} 30. Rxe2 {[%emt 0:00:00]} Bxb2 {[%emt 0:00:09]} 31. Rc2 {[%emt 0:01:39]} Bd4 {[%emt 0:00:06]} 32. Kg2 {[%emt 0:01:24]} Nf6 {[%emt 0:00:07]} 33. f3 {[%emt 0:00:29]} Nd5 {[%emt 0:01:53]} 34. Rc6 {[%emt 0:05:32]} Nc3 {[%emt 0:03:39]} 35. Re1 {[%emt 0:00:05]} Nxa4 {[%emt 0:00:06]} 36. Nb3 {[%emt 0:00:11]} Bg7 {[%emt 0:00:22]} 37. Rec1 {[%emt 0:01:38]} Nb2 {[%emt 0:00:32]} 38. h4 {[%emt 0:01:20]} Nd3 {[%emt 0:00:08]} 39. Rb1 {[%emt 0:03:14]} Ra8 {[%emt 0:00:35]} 40. Rd1 {[%emt 0:00:59]} Red8 {[%emt 0:01:42]} 41. Kf1 {[%emt 0:03:02]} Ne5 {[%emt 0:01:24]} 42. Rxd8+ {[%emt 0:00:38]} Rxd8 {[%emt 0:00:06]} 43. Rc3 {[%emt 0:00:37]} Ng4 {[%emt 0:05:04]} 44. Rc1 $19 {[%emt 0:02:27]} Nh2+ {[%emt 0:00:45]} 45. Ke2 {[%emt 0:03:19]} Nxf3 {[%emt 0:00:05]} 0-1

[Event "105th British-ch 2018"]
[Site "Hull"]
[Date "2018.07.30"]
[Round "3"]
[White "McDougall, William M"]
[Black "Abdulla, Murad"]
[Result "0-1"]
[ECO "A57"]
[WhiteElo "2056"]
[BlackElo "2281"]
[Annotator "NA"]
[PlyCount "53"]
[EventDate "2018.07.28"]
[EventType "swiss"]
[EventCountry "GBR"]
[SourceTitle "playchess.com"]
[Source "ChessBase"]
[SourceQuality "1"]
[TimeControl "40/5400+30:1800+30"]

1. d4 {[%emt 0:00:04]} Nf6 {[%emt 0:00:08]} 2. c4 {[%emt 0:00:04]} c5 {[%emt 0:00:23]} 3. d5 {[%emt 0:00:25]} b5 {[%emt 0:00:07]} 4. cxb5 {[%emt 0:00:51]} a6 {[%emt 0:00:08]} 5. Nc3 {[%emt 0:00:30]} axb5 {[%emt 0:05:00]} 6. e4 {[%emt 0:00:23]} Qa5 {[%emt 0:04:37]} 7. Bd2 {[%emt 0:07:11]} b4 {[%emt 0:03:48]} 8. e5 {[%emt 0:01:49]} bxc3 {[%emt 0:05:36]} 9. Bxc3 {[%emt 0:00:06]} Qb6 {[%emt 0:00:13]} 10. exf6 {[%emt 0:00:40]} gxf6 {[%emt 0:01:16]} 11. d6 {[%emt 0:12:28]} Bb7 {[%emt 0:02:18]} 12. Nf3 {[%emt 0:15:06]} e5 {[%emt 0:05:39]} 13. Bc4 {[%emt 0:01:57]} Bxd6 {[%emt 0:06:03]} 14. Nh4 {[%emt 0:06:16]} Qc6 {[%emt 0:15:38]} 15. f3 {[%emt 0:04:49]} Na6 {[%emt 0:08:10]} 16. Qb3 {[%emt 0:04:44]} O-O-O {[%emt 0:09:49]} 17. O-O-O {[%emt 0:02:11]} Nc7 {[%emt 0:02:03]} 18. Rxd6 {[%emt 0:23:17]} Qxd6 {[%emt 0:00:18]} 19. Ba5 {[%emt 0:01:34]} f5 {[%emt 0:10:43]} 20. Nxf5 {[%emt 0:08:56]} Qf6 {[%emt 0:01:12]} 21. Rd1 {[%emt 0:03:03]} d5 {[%emt 0:03:01]} 22. Bxc7 {[%emt 0:02:03]} Kxc7 {[%emt 0:02:52]} 23. Bxd5 {[%emt 0:01:47]} Rxd5 {[%emt 0:00:56]} 24. Rxd5 {[%emt 0:00:12]} Bxd5 {[%emt 0:00:09]} 25. Qxd5 {[%emt 0:00:08]} Qg5+ {[%emt 0:00:18]} 26. Kd1 {[%emt 0:01:45]} Rd8 {[%emt 0:00:23]} 27. Nd6 {[%emt 0:00:06]} 0-1

[Event "105th British-ch 2018"]
[Site "Hull"]
[Date "2018.07.30"]
[Round "3"]
[White "Jamroz, Krzysztof"]
[Black "Payne, Matthew J"]
[Result "*"]
[ECO "C04"]
[WhiteElo "2026"]
[BlackElo "2113"]
[Annotator "NA"]
[PlyCount "37"]
[EventDate "2018.07.28"]
[EventType "swiss"]
[EventCountry "GBR"]
[SourceTitle "playchess.com"]
[Source "ChessBase"]
[SourceQuality "1"]
[TimeControl "40/5400+30:1800+30"]

1. e4 {[%emt 0:00:02]} e6 {[%emt 0:00:50]} 2. d4 {[%emt 0:00:06]} d5 {[%emt 0:00:08]} 3. Nd2 {[%emt 0:00:05]} Nc6 {[%emt 0:00:24]} 4. Ngf3 {[%emt 0:00:06]} Nf6 {[%emt 0:00:10]} 5. e5 {[%emt 0:00:07]} Nd7 {[%emt 0:00:06]} 6. c3 {[%emt 0:00:23]} f6 {[%emt 0:00:13]} 7. Bb5 {[%emt 0:00:06]} a6 {[%emt 0:03:48]} 8. Bxc6 {[%emt 0:11:45]} bxc6 {[%emt 0:00:09]} 9. O-O {[%emt 0:00:36]} fxe5 {[%emt 0:12:50]} 10. dxe5 {[%emt 0:01:00]} c5 {[%emt 0:02:22]} 11. Nb3 {[%emt 0:11:59]} a5 {[%emt 0:09:36]} 12. Bg5 {[%emt 0:02:12]} Be7 {[%emt 0:00:09]} 13. Bxe7 {[%emt 0:00:07]} Qxe7 {[%emt 0:00:12]} 14. Re1 {[%emt 0:00:16]} O-O {[%emt 0:02:43]} 15. Nbd2 {[%emt 0:00:16]} Bb7 {[%emt 0:05:26]} 16. Qa4 {[%emt 0:13:54]} Rf5 {[%emt 0:18:55]} 17. Qh4 {[%emt 0:11:37]} Qxh4 {[%emt 0:02:56]} 18. Nxh4 {[%emt 0:00:06]} Rxe5 {[%emt 0:00:03]} 19. Rxe5 {[%emt 0:00:06]} *